[Event "*** SCC Grand Prix: Titled Tuesday Blitz"]
[Site "Chess.com"]
[Date "2020.10.13"]
[Round "6"]
[White "Piotrek1979"]
[Black "MarceloPlaya"]
[Result "1-0"]
[WhiteElo "2431"]
[BlackElo "2273"]
[TimeControl "180+1"]
[EndTime "11:05:36 PDT"]
[Termination "Piotrek1979 won by resignation"]

1. Nf3 {[%clk 0:03:00.9]} 1... e6 {[%clk 0:02:59.1]} 2. g3 {[%clk 0:02:59.4]}
2... d5 {[%clk 0:02:59]} 3. Bg2 {[%clk 0:03:00.3]} 3... c5 {[%clk 0:02:58.6]} 4.
O-O {[%clk 0:03:01]} 4... Nc6 {[%clk 0:02:57.6]} 5. c4 {[%clk 0:02:59.9]} 5...
d4 {[%clk 0:02:54.3]} 6. d3 {[%clk 0:03:00.1]} 6... Nf6 {[%clk 0:02:53.1]} 7. e3
{[%clk 0:03:00.1]} 7... e5 {[%clk 0:02:47.3]} 8. exd4 {[%clk 0:02:59.9]} 8...
exd4 {[%clk 0:02:46.7]} 9. Re1+ {[%clk 0:02:55]} 9... Be7 {[%clk 0:02:46.3]} 10.
Bf4 {[%clk 0:02:47.7]} 10... O-O {[%clk 0:02:45.1]} 11. Ne5 {[%clk 0:02:47.5]}
11... Nxe5 {[%clk 0:02:41.9]} 12. Bxe5 {[%clk 0:02:48.4]} 12... Bd6 {[%clk
0:02:32.6]} 13. Nd2 {[%clk 0:02:43.5]} 13... Bxe5 {[%clk 0:02:26.6]} 14. Rxe5
{[%clk 0:02:44.4]} 14... Qd6 {[%clk 0:02:26.1]} 15. Qe2 {[%clk 0:02:37]} 15...
Bg4 {[%clk 0:02:17.2]} 16. Bf3 {[%clk 0:02:32.4]} 16... Bxf3 {[%clk 0:02:11.6]}
17. Nxf3 {[%clk 0:02:33.3]} 17... Rfe8 {[%clk 0:02:09.7]} 18. Re1 {[%clk
0:02:32.2]} 18... Rxe5 {[%clk 0:02:03.5]} 19. Qxe5 {[%clk 0:02:33.1]} 19... Qxe5
{[%clk 0:01:55.9]} 20. Rxe5 {[%clk 0:02:34]} 20... b6 {[%clk 0:01:46.7]} 21. Re7
{[%clk 0:02:32.6]} 21... Kf8 {[%clk 0:01:30.7]} 22. Rb7 {[%clk 0:02:31.9]} 22...
Re8 {[%clk 0:01:14.4]} 23. Rxa7 {[%clk 0:02:05]} 23... Re2 {[%clk 0:01:13.8]}
24. Kf1 {[%clk 0:02:00.9]} 24... Rxb2 {[%clk 0:01:12.3]} 25. Ne5 {[%clk
0:02:00.9]} 25... Ke8 {[%clk 0:01:05.5]} 26. h3 {[%clk 0:01:55.3]} 26... Rd2
{[%clk 0:00:52.7]} 27. Rxf7 {[%clk 0:01:47.6]} 27... Rxa2 {[%clk 0:00:44.9]} 28.
Rxg7 {[%clk 0:01:47.6]} 28... Rb2 {[%clk 0:00:29.6]} 29. Rb7 {[%clk 0:01:46.3]}
29... Kd8 {[%clk 0:00:19.4]} 30. g4 {[%clk 0:01:42.8]} 30... Ne8 {[%clk
0:00:18.8]} 31. Rxh7 {[%clk 0:01:32.1]} 31... b5 {[%clk 0:00:18.1]} 32. cxb5
{[%clk 0:01:28.1]} 32... Rxb5 {[%clk 0:00:17.6]} 33. Nc6+ {[%clk 0:01:28]} 33...
Kc8 {[%clk 0:00:15.8]} 34. Na7+ {[%clk 0:01:28.9]} 1-0

[Event "*** SCC Grand Prix: Titled Tuesday Blitz"]
[Site "Chess.com"]
[Date "2020.10.13"]
[Round "6"]
[White "venus02"]
[Black "QuintilianoR"]
[Result "1-0"]
[WhiteElo "2502"]
[BlackElo "2617"]
[TimeControl "180+1"]
[EndTime "11:05:37 PDT"]
[Termination "venus02 won by resignation"]

1. e4 {[%clk 0:03:00.9]} 1... e6 {[%clk 0:02:58.9]} 2. d4 {[%clk 0:03:00.4]}
2... d5 {[%clk 0:02:58.9]} 3. Nd2 {[%clk 0:03:00.5]} 3... Nc6 {[%clk 0:02:57]}
4. Ngf3 {[%clk 0:02:59.5]} 4... Nf6 {[%clk 0:02:56.2]} 5. e5 {[%clk 0:02:59.3]}
5... Nd7 {[%clk 0:02:56.1]} 6. Nb3 {[%clk 0:02:59.3]} 6... f6 {[%clk 0:02:53.3]}
7. Bb5 {[%clk 0:02:57.5]} 7... a5 {[%clk 0:02:22.6]} 8. O-O {[%clk 0:02:52.8]}
8... a4 {[%clk 0:02:17.7]} 9. Nbd2 {[%clk 0:02:42.3]} 9... Na7 {[%clk
0:02:13.9]} 10. Bxa4 {[%clk 0:02:39.3]} 10... b5 {[%clk 0:02:10.7]} 11. Bb3
{[%clk 0:02:39]} 11... c5 {[%clk 0:02:09.8]} 12. c3 {[%clk 0:02:38.6]} 12... Nc6
{[%clk 0:02:09.3]} 13. Re1 {[%clk 0:02:33.8]} 13... fxe5 {[%clk 0:02:05.1]} 14.
Nxe5 {[%clk 0:02:29.7]} 14... Ndxe5 {[%clk 0:02:04.3]} 15. dxe5 {[%clk
0:02:28.4]} 15... Be7 {[%clk 0:02:03]} 16. Nf3 {[%clk 0:02:23.2]} 16... O-O
{[%clk 0:02:02.1]} 17. Bc2 {[%clk 0:02:23.1]} 17... Bd7 {[%clk 0:01:50.2]} 18.
Qd3 {[%clk 0:02:21.5]} 18... g6 {[%clk 0:01:49.7]} 19. Bh6 {[%clk 0:02:18.4]}
19... Rf7 {[%clk 0:01:45.4]} 20. Qd2 {[%clk 0:02:17.4]} 20... Rxf3 {[%clk
0:01:12.7]} 21. gxf3 {[%clk 0:02:16.5]} 21... Qe8 {[%clk 0:01:13]} 22. Qf4
{[%clk 0:02:06.8]} 22... Qd8 {[%clk 0:00:58.2]} 23. Qg4 {[%clk 0:02:01.3]} 23...
Bf8 {[%clk 0:00:36.3]} 24. Bg5 {[%clk 0:01:55.2]} 24... Qe8 {[%clk 0:00:23]} 25.
Bf6 {[%clk 0:01:51.3]} 25... Bg7 {[%clk 0:00:20]} 26. Bxg7 {[%clk 0:01:50.3]}
26... Kxg7 {[%clk 0:00:19.4]} 27. h4 {[%clk 0:01:50.3]} 27... Qf7 {[%clk
0:00:19.5]} 28. h5 {[%clk 0:01:48]} 28... Rf8 {[%clk 0:00:19.9]} 29. hxg6 {[%clk
0:01:44.9]} 29... hxg6 {[%clk 0:00:20.8]} 30. Kg2 {[%clk 0:01:44.5]} 30... Ne7
{[%clk 0:00:20.4]} 31. Rh1 {[%clk 0:01:40.7]} 31... Qf4 {[%clk 0:00:20.4]} 32.
Qxf4 {[%clk 0:01:28.5]} 32... Rxf4 {[%clk 0:00:21.3]} 33. Kg3 {[%clk 0:01:28.7]}
33... Rf5 {[%clk 0:00:21.1]} 34. Bxf5 {[%clk 0:01:27.4]} 34... Nxf5+ {[%clk
0:00:21.3]} 1-0

[Event "*** SCC Grand Prix: Titled Tuesday Blitz"]
[Site "Chess.com"]
[Date "2020.10.13"]
[Round "6"]
[White "semchik73"]
[Black "TST2014"]
[Result "0-1"]
[WhiteElo "2359"]
[BlackElo "2539"]
[TimeControl "180+1"]
[EndTime "11:05:38 PDT"]
[Termination "TST2014 won by checkmate"]

1. Nf3 {[%clk 0:03:00.2]} 1... Nf6 {[%clk 0:02:55.4]} 2. c4 {[%clk 0:03:00.6]}
2... g6 {[%clk 0:02:52.3]} 3. d4 {[%clk 0:03:00.3]} 3... Bg7 {[%clk 0:02:52.8]}
4. Nc3 {[%clk 0:03:00.9]} 4... O-O {[%clk 0:02:53.4]} 5. e3 {[%clk 0:03:01.6]}
5... d6 {[%clk 0:02:53.9]} 6. Be2 {[%clk 0:03:02.2]} 6... c5 {[%clk 0:02:53.2]}
7. O-O {[%clk 0:03:02.5]} 7... Nc6 {[%clk 0:02:49.7]} 8. b3 {[%clk 0:03:00.2]}
8... cxd4 {[%clk 0:02:49.3]} 9. exd4 {[%clk 0:03:00.3]} 9... d5 {[%clk
0:02:49.2]} 10. Bb2 {[%clk 0:02:52.6]} 10... Bg4 {[%clk 0:02:35.6]} 11. Ne5
{[%clk 0:02:42]} 11... Bxe2 {[%clk 0:02:34.4]} 12. Nxe2 {[%clk 0:02:41.8]} 12...
e6 {[%clk 0:02:28.4]} 13. Rc1 {[%clk 0:02:35.1]} 13... Ne4 {[%clk 0:02:18.9]}
14. cxd5 {[%clk 0:02:26.1]} 14... Nxe5 {[%clk 0:02:08.4]} 15. dxe5 {[%clk
0:02:26.3]} 15... exd5 {[%clk 0:02:07.4]} 16. f3 {[%clk 0:02:19.3]} 16... Ng5
{[%clk 0:02:03.8]} 17. Rc5 {[%clk 0:02:03.8]} 17... Qb6 {[%clk 0:01:52.3]} 18.
Bd4 {[%clk 0:02:03.2]} 18... Bxe5 {[%clk 0:01:50.9]} 19. Bf2 {[%clk 0:01:57.1]}
19... Ne6 {[%clk 0:01:34.9]} 20. Rxd5 {[%clk 0:01:51.8]} 20... Qc7 {[%clk
0:01:34.7]} 21. Rd7 {[%clk 0:01:40]} 21... Bxh2+ {[%clk 0:01:27.3]} 22. Kh1
{[%clk 0:01:39.8]} 22... Qe5 {[%clk 0:01:27.8]} 23. g3 {[%clk 0:01:35.5]} 23...
Rad8 {[%clk 0:00:59]} 24. Re1 {[%clk 0:01:03.5]} 24... Qh5 {[%clk 0:00:44.3]}
25. Kg2 {[%clk 0:01:02.7]} 25... Rxd7 {[%clk 0:00:40.6]} 26. Qxd7 {[%clk
0:01:01.4]} 26... Rd8 {[%clk 0:00:37.6]} 27. Qxb7 {[%clk 0:00:58.2]} 27... Ng5
{[%clk 0:00:36.2]} 28. Rh1 {[%clk 0:00:57]} 28... Qh3# {[%clk 0:00:33]} 0-1

[Event "*** SCC Grand Prix: Titled Tuesday Blitz"]
[Site "Chess.com"]
[Date "2020.10.13"]
[Round "6"]
[White "esrosenberg"]
[Black "Zq1"]
[Result "0-1"]
[WhiteElo "2312"]
[BlackElo "2512"]
[TimeControl "180+1"]
[EndTime "11:05:38 PDT"]
[Termination "Zq1 won on time"]

1. Nf3 {[%clk 0:03:00.9]} 1... Nf6 {[%clk 0:02:56]} 2. c4 {[%clk 0:03:00.9]}
2... e6 {[%clk 0:02:55.4]} 3. Nc3 {[%clk 0:03:00.8]} 3... d5 {[%clk 0:02:55.5]}
4. d4 {[%clk 0:03:00.6]} 4... Be7 {[%clk 0:02:55.7]} 5. Bg5 {[%clk 0:03:00.3]}
5... h6 {[%clk 0:02:55.1]} 6. Bf4 {[%clk 0:03:00.2]} 6... O-O {[%clk 0:02:53.5]}
7. e3 {[%clk 0:03:00.3]} 7... b6 {[%clk 0:02:52]} 8. Qc2 {[%clk 0:02:57.4]} 8...
c5 {[%clk 0:02:50.5]} 9. Rd1 {[%clk 0:02:54.4]} 9... cxd4 {[%clk 0:02:49.6]} 10.
exd4 {[%clk 0:02:53.2]} 10... Bb7 {[%clk 0:02:44.3]} 11. a3 {[%clk 0:02:52.5]}
11... Nc6 {[%clk 0:02:38.8]} 12. Be2 {[%clk 0:02:37.7]} 12... Rc8 {[%clk
0:02:36.8]} 13. cxd5 {[%clk 0:02:00.9]} 13... Nxd5 {[%clk 0:02:34.1]} 14. Nxd5
{[%clk 0:02:00.7]} 14... Qxd5 {[%clk 0:02:32.4]} 15. Qd2 {[%clk 0:01:42.5]}
15... Bf6 {[%clk 0:02:26.6]} 16. Qe3 {[%clk 0:01:29.8]} 16... Rfd8 {[%clk
0:02:20.9]} 17. O-O {[%clk 0:00:30.3]} 17... Nxd4 {[%clk 0:02:19.8]} 18. Kh1
{[%clk 0:00:24.3]} 18... Rc2 {[%clk 0:01:55.9]} 19. Rfe1 {[%clk 0:00:09.4]}
19... Qe4 {[%clk 0:01:18.2]} 20. Qxe4 {[%clk 0:00:07.1]} 20... Bxe4 {[%clk
0:01:17.2]} 21. Nxd4 {[%clk 0:00:05.7]} 21... Rxd4 {[%clk 0:01:11.1]} 22. Rxd4
{[%clk 0:00:04.3]} 22... Bxd4 {[%clk 0:01:10.3]} 23. Bd1 {[%clk 0:00:03.5]}
23... Rxf2 {[%clk 0:01:09.6]} 0-1

[Event "*** SCC Grand Prix: Titled Tuesday Blitz"]
[Site "Chess.com"]
[Date "2020.10.13"]
[Round "6"]
[White "lucachess49"]
[Black "Shivagami"]
[Result "1-0"]
[WhiteElo "2409"]
[BlackElo "2242"]
[TimeControl "180+1"]
[EndTime "11:05:41 PDT"]
[Termination "lucachess49 won by resignation"]

1. d4 {[%clk 0:03:00.9]} 1... Nf6 {[%clk 0:02:59.2]} 2. c4 {[%clk 0:02:59.9]}
2... c5 {[%clk 0:02:58.9]} 3. d5 {[%clk 0:02:59.5]} 3... e6 {[%clk 0:02:59.4]}
4. Nc3 {[%clk 0:02:59.1]} 4... exd5 {[%clk 0:03:00]} 5. cxd5 {[%clk 0:03:00]}
5... d6 {[%clk 0:02:58]} 6. Nf3 {[%clk 0:03:00.1]} 6... a6 {[%clk 0:02:56.8]} 7.
a4 {[%clk 0:02:59.4]} 7... g6 {[%clk 0:02:56.1]} 8. Bf4 {[%clk 0:02:58.7]} 8...
Bg7 {[%clk 0:02:55.4]} 9. e3 {[%clk 0:02:58.4]} 9... Bg4 {[%clk 0:02:53.9]} 10.
Be2 {[%clk 0:02:57.1]} 10... O-O {[%clk 0:02:52.9]} 11. Nd2 {[%clk 0:02:52.9]}
11... Bxe2 {[%clk 0:02:52.2]} 12. Qxe2 {[%clk 0:02:53.8]} 12... Ne8 {[%clk
0:02:49.8]} 13. O-O {[%clk 0:02:52.7]} 13... Nd7 {[%clk 0:02:49.3]} 14. Nc4
{[%clk 0:02:52]} 14... Qe7 {[%clk 0:02:47.4]} 15. a5 {[%clk 0:02:49.8]} 15...
Ne5 {[%clk 0:02:41.3]} 16. Rab1 {[%clk 0:02:35.6]} 16... f5 {[%clk 0:02:22.9]}
17. h3 {[%clk 0:02:31.5]} 17... Nc7 {[%clk 0:02:14.9]} 18. b4 {[%clk 0:02:12]}
18... cxb4 {[%clk 0:02:04]} 19. Rxb4 {[%clk 0:02:07]} 19... Nxc4 {[%clk
0:01:51]} 20. Qxc4 {[%clk 0:02:05.3]} 20... Bxc3 {[%clk 0:01:38.2]} 21. Qxc3
{[%clk 0:02:06.2]} 21... Nxd5 {[%clk 0:01:37.5]} 22. Qb3 {[%clk 0:02:03.6]}
22... Qe6 {[%clk 0:01:30.3]} 23. Bh6 {[%clk 0:02:02.1]} 23... Rf7 {[%clk
0:01:13.7]} 24. Rxb7 {[%clk 0:01:27.5]} 24... Nc7 {[%clk 0:00:43.7]} 25. Qb6
{[%clk 0:01:06.8]} 25... Nb5 {[%clk 0:00:34.6]} 26. Rb8+ {[%clk 0:01:03.6]} 1-0

[Event "*** SCC Grand Prix: Titled Tuesday Blitz"]
[Site "Chess.com"]
[Date "2020.10.13"]
[Round "6"]
[White "tdf98pantani"]
[Black "HrvojeZagreb"]
[Result "1-0"]
[WhiteElo "2715"]
[BlackElo "2177"]
[TimeControl "180+1"]
[EndTime "11:05:46 PDT"]
[Termination "tdf98pantani won on time"]

1. d4 {[%clk 0:03:00.9]} 1... e6 {[%clk 0:02:59.6]} 2. e4 {[%clk 0:03:00.6]}
2... d5 {[%clk 0:02:59.2]} 3. Nc3 {[%clk 0:02:58.5]} 3... dxe4 {[%clk
0:02:59.4]} 4. Nxe4 {[%clk 0:02:58.1]} 4... Nd7 {[%clk 0:02:59.7]} 5. Nf3 {[%clk
0:02:57.9]} 5... Ngf6 {[%clk 0:02:59.9]} 6. Nxf6+ {[%clk 0:02:57.7]} 6... Nxf6
{[%clk 0:03:00]} 7. c3 {[%clk 0:02:57.8]} 7... c5 {[%clk 0:02:59.6]} 8. Ne5
{[%clk 0:02:57]} 8... a6 {[%clk 0:02:58.5]} 9. Qa4+ {[%clk 0:02:55.7]} 9... Bd7
{[%clk 0:02:45.3]} 10. Nxd7 {[%clk 0:02:54.5]} 10... Nxd7 {[%clk 0:02:40.6]} 11.
Be3 {[%clk 0:02:51.6]} 11... b5 {[%clk 0:02:33.9]} 12. Qd1 {[%clk 0:02:50.1]}
12... Qc7 {[%clk 0:02:28]} 13. Be2 {[%clk 0:02:47.2]} 13... cxd4 {[%clk
0:02:27.5]} 14. Bxd4 {[%clk 0:02:44.7]} 14... Bc5 {[%clk 0:02:23.4]} 15. Bf3
{[%clk 0:02:36.3]} 15... Rd8 {[%clk 0:02:18.6]} 16. Bxg7 {[%clk 0:02:22.9]}
16... Ne5 {[%clk 0:02:00.1]} 17. Qe2 {[%clk 0:02:11]} 17... Nd3+ {[%clk
0:01:57.2]} 18. Kf1 {[%clk 0:02:10.8]} 18... Nxf2 {[%clk 0:01:34.8]} 19. Bxh8
{[%clk 0:02:07.5]} 19... Nxh1 {[%clk 0:01:34.5]} 20. Be5 {[%clk 0:02:05.5]}
20... Qb6 {[%clk 0:00:41.5]} 21. b4 {[%clk 0:01:59.6]} 21... Bd6 {[%clk
0:00:35.5]} 22. Bd4 {[%clk 0:01:53.7]} 22... Qc7 {[%clk 0:00:15.4]} 23. Kg1
{[%clk 0:01:47.9]} 23... Bxh2+ {[%clk 0:00:13]} 24. Kxh1 {[%clk 0:01:46.7]}
24... Bg3 {[%clk 0:00:10.2]} 25. Qe4 {[%clk 0:01:43.8]} 25... Rd5 {[%clk
0:00:07.2]} 26. Qxh7 {[%clk 0:01:42.9]} 26... Rxd4 {[%clk 0:00:02.1]} 27. cxd4
{[%clk 0:01:38]} 27... Qf4 {[%clk 0:00:02.2]} 28. d5 {[%clk 0:01:31.1]} 28...
Ke7 {[%clk 0:00:02]} 29. dxe6 {[%clk 0:01:30.5]} 29... Kxe6 {[%clk 0:00:01.6]}
30. Rf1 {[%clk 0:01:28.8]} 1-0

[Event "*** SCC Grand Prix: Titled Tuesday Blitz"]
[Site "Chess.com"]
[Date "2020.10.13"]
[Round "6"]
[White "barriochess"]
[Black "JoakimVonAnd"]
[Result "0-1"]
[WhiteElo "2271"]
[BlackElo "2493"]
[TimeControl "180+1"]
[EndTime "11:05:52 PDT"]
[Termination "JoakimVonAnd won by resignation"]

1. d4 {[%clk 0:03:00.9]} 1... Nf6 {[%clk 0:02:59.3]} 2. c4 {[%clk 0:03:00.3]}
2... e6 {[%clk 0:02:59.4]} 3. Nf3 {[%clk 0:02:59.2]} 3... d5 {[%clk 0:02:57.7]}
4. g3 {[%clk 0:02:58.8]} 4... Bb4+ {[%clk 0:02:57]} 5. Nc3 {[%clk 0:02:57.3]}
5... dxc4 {[%clk 0:02:52.3]} 6. Bg2 {[%clk 0:02:56.7]} 6... O-O {[%clk
0:02:49.6]} 7. O-O {[%clk 0:02:57]} 7... c5 {[%clk 0:02:37.6]} 8. dxc5 {[%clk
0:02:47.8]} 8... Bxc5 {[%clk 0:02:34.4]} 9. Bg5 {[%clk 0:02:45.7]} 9... Qxd1
{[%clk 0:02:29.2]} 10. Rfxd1 {[%clk 0:02:41.4]} 10... Nc6 {[%clk 0:02:29.4]} 11.
Bxf6 {[%clk 0:02:37.4]} 11... gxf6 {[%clk 0:02:28.9]} 12. Rac1 {[%clk
0:02:35.4]} 12... e5 {[%clk 0:02:13]} 13. Ne4 {[%clk 0:02:32.9]} 13... Be7
{[%clk 0:02:12.9]} 14. Nd6 {[%clk 0:02:32.2]} 14... Be6 {[%clk 0:02:07.1]} 15.
Nxc4 {[%clk 0:02:27.6]} 15... Rfd8 {[%clk 0:02:01.8]} 16. b3 {[%clk 0:02:20.5]}
16... Nb4 {[%clk 0:01:57.5]} 17. a4 {[%clk 0:02:15.8]} 17... Na2 {[%clk
0:01:51.1]} 18. Ra1 {[%clk 0:02:01.7]} 18... Nc3 {[%clk 0:01:47.4]} 19. Re1
{[%clk 0:02:02.2]} 19... Bb4 {[%clk 0:01:43.7]} 20. e3 {[%clk 0:01:49.8]} 20...
Rac8 {[%clk 0:01:23.2]} 21. Bf1 {[%clk 0:01:47.8]} 21... Bd5 {[%clk 0:01:08.6]}
22. Nh4 {[%clk 0:01:42.9]} 22... Nxa4 {[%clk 0:00:50.8]} 23. Rec1 {[%clk
0:01:35.6]} 23... Nc5 {[%clk 0:00:48.2]} 24. Rxa7 {[%clk 0:01:30.4]} 24... Nxb3
{[%clk 0:00:43.8]} 25. Rb1 {[%clk 0:01:26.7]} 25... Bc5 {[%clk 0:00:38.9]} 26.
Ra4 {[%clk 0:01:21.7]} 26... b5 {[%clk 0:00:34.2]} 27. Rxb3 {[%clk 0:01:11.3]}
27... bxa4 {[%clk 0:00:31.1]} 28. Rb5 {[%clk 0:01:05.7]} 28... a3 {[%clk
0:00:22.1]} 29. Ra5 {[%clk 0:01:02.2]} 29... Bb4 {[%clk 0:00:21.8]} 0-1

[Event "*** SCC Grand Prix: Titled Tuesday Blitz"]
[Site "Chess.com"]
[Date "2020.10.13"]
[Round "6"]
[White "Nemsko"]
[Black "Inga83"]
[Result "0-1"]
[WhiteElo "2359"]
[BlackElo "2405"]
[TimeControl "180+1"]
[EndTime "11:05:52 PDT"]
[Termination "Inga83 won by resignation"]

1. e4 {[%clk 0:03:00.9]} 1... c6 {[%clk 0:02:59.2]} 2. d4 {[%clk 0:03:00.2]}
2... d5 {[%clk 0:02:59]} 3. e5 {[%clk 0:03:00.3]} 3... Bf5 {[%clk 0:02:58.4]} 4.
Nf3 {[%clk 0:03:00.2]} 4... e6 {[%clk 0:02:58.1]} 5. Be2 {[%clk 0:03:00.2]} 5...
c5 {[%clk 0:02:50.3]} 6. Be3 {[%clk 0:02:57.1]} 6... Ne7 {[%clk 0:02:39.2]} 7.
O-O {[%clk 0:02:51.1]} 7... Nec6 {[%clk 0:02:38.5]} 8. c4 {[%clk 0:02:47]} 8...
dxc4 {[%clk 0:02:36.2]} 9. Bxc4 {[%clk 0:02:46.2]} 9... cxd4 {[%clk 0:02:34.5]}
10. Bxd4 {[%clk 0:02:40.7]} 10... Bg4 {[%clk 0:02:29.8]} 11. Bc3 {[%clk
0:02:33.2]} 11... Qxd1 {[%clk 0:02:24]} 12. Rxd1 {[%clk 0:02:34.1]} 12... Bc5
{[%clk 0:02:24.2]} 13. Nbd2 {[%clk 0:02:29.6]} 13... O-O {[%clk 0:02:19.8]} 14.
Ne4 {[%clk 0:02:27.3]} 14... Bb6 {[%clk 0:02:17.3]} 15. Rd2 {[%clk 0:02:15.5]}
15... Na6 {[%clk 0:02:02.2]} 16. Rad1 {[%clk 0:02:02.2]} 16... Nc5 {[%clk
0:01:57.9]} 17. Nd6 {[%clk 0:01:58.7]} 17... Na4 {[%clk 0:01:52.2]} 18. Nxb7
{[%clk 0:01:50.1]} 18... Nxc3 {[%clk 0:01:51.6]} 19. bxc3 {[%clk 0:01:51]} 19...
Bxf3 {[%clk 0:01:51.5]} 20. gxf3 {[%clk 0:01:50.8]} 20... Nxe5 {[%clk
0:01:51.5]} 21. Be2 {[%clk 0:01:51]} 21... Rac8 {[%clk 0:01:47]} 22. Rc2 {[%clk
0:01:41]} 22... Rc7 {[%clk 0:01:45]} 23. Nd6 {[%clk 0:01:39.7]} 23... Ng6 {[%clk
0:01:40]} 24. c4 {[%clk 0:01:33.3]} 24... Nf4 {[%clk 0:01:38.6]} 25. Bf1 {[%clk
0:01:32.4]} 25... Rd8 {[%clk 0:01:31.3]} 26. Rcd2 {[%clk 0:01:26.6]} 26... h5
{[%clk 0:01:20]} 27. Nb5 {[%clk 0:01:17.3]} 27... Rxd2 {[%clk 0:01:16.3]} 28.
Rxd2 {[%clk 0:01:18.2]} 28... Rc8 {[%clk 0:01:16.4]} 29. Rd7 {[%clk 0:01:13]}
29... Rc5 {[%clk 0:01:08.2]} 30. Nxa7 {[%clk 0:00:41.5]} 30... Rg5+ {[%clk
0:01:07.3]} 31. Kh1 {[%clk 0:00:40.5]} 31... Bxf2 {[%clk 0:01:07.1]} 32. Rd8+
{[%clk 0:00:29.1]} 32... Kh7 {[%clk 0:01:06]} 0-1

[Event "*** SCC Grand Prix: Titled Tuesday Blitz"]
[Site "Chess.com"]
[Date "2020.10.13"]
[Round "6"]
[White "Quiet_Desperation"]
[Black "Matols"]
[Result "1-0"]
[WhiteElo "1916"]
[BlackElo "2232"]
[TimeControl "180+1"]
[EndTime "11:05:52 PDT"]
[Termination "Quiet_Desperation won by checkmate"]

1. e4 {[%clk 0:03:00.9]} 1... e6 {[%clk 0:02:58.7]} 2. d4 {[%clk 0:03:00.6]}
2... d5 {[%clk 0:02:57.3]} 3. Nc3 {[%clk 0:03:01]} 3... Nf6 {[%clk 0:02:55.6]}
4. e5 {[%clk 0:03:01.5]} 4... Nfd7 {[%clk 0:02:55.8]} 5. f4 {[%clk 0:03:01.8]}
5... c5 {[%clk 0:02:56]} 6. Nf3 {[%clk 0:03:02.1]} 6... Nc6 {[%clk 0:02:55.5]}
7. Be3 {[%clk 0:03:01.8]} 7... cxd4 {[%clk 0:02:55.8]} 8. Nxd4 {[%clk
0:03:01.4]} 8... Bc5 {[%clk 0:02:55.9]} 9. Qd2 {[%clk 0:03:00.8]} 9... O-O
{[%clk 0:02:56.1]} 10. O-O-O {[%clk 0:03:01]} 10... a6 {[%clk 0:02:56.3]} 11. h4
{[%clk 0:03:00.6]} 11... Nxd4 {[%clk 0:02:55.7]} 12. Bxd4 {[%clk 0:03:00.5]}
12... b5 {[%clk 0:02:55.8]} 13. Bxc5 {[%clk 0:02:59]} 13... Nxc5 {[%clk
0:02:55.4]} 14. Bd3 {[%clk 0:02:59]} 14... b4 {[%clk 0:02:52.4]} 15. Ne2 {[%clk
0:02:58.8]} 15... a5 {[%clk 0:02:51]} 16. Kb1 {[%clk 0:02:58.9]} 16... Qb6
{[%clk 0:02:46.4]} 17. h5 {[%clk 0:02:50.1]} 17... a4 {[%clk 0:02:44.6]} 18. h6
{[%clk 0:02:49.8]} 18... g6 {[%clk 0:02:44.3]} 19. Qe3 {[%clk 0:02:45.3]} 19...
Ba6 {[%clk 0:02:25.1]} 20. g4 {[%clk 0:02:36.3]} 20... b3 {[%clk 0:02:16.2]} 21.
cxb3 {[%clk 0:02:21.6]} 21... axb3 {[%clk 0:01:48.7]} 22. a3 {[%clk 0:02:20.5]}
22... Rfc8 {[%clk 0:01:38.6]} 23. Bxa6 {[%clk 0:02:10.7]} 23... Qxa6 {[%clk
0:01:35.4]} 24. f5 {[%clk 0:02:01.5]} 24... Ne4 {[%clk 0:01:29.8]} 25. Rc1
{[%clk 0:01:48.3]} 25... Rc4 {[%clk 0:01:22.3]} 26. Ng3 {[%clk 0:01:37.2]} 26...
Rac8 {[%clk 0:01:01.7]} 27. Nxe4 {[%clk 0:01:34.6]} 27... Rxe4 {[%clk 0:00:58]}
28. Qxb3 {[%clk 0:01:31.1]} 28... Rxg4 {[%clk 0:00:55.9]} 29. Qb5 {[%clk
0:01:11.7]} 29... Qa8 {[%clk 0:00:40.7]} 30. fxe6 {[%clk 0:01:09.3]} 30... fxe6
{[%clk 0:00:39.9]} 31. Qd7 {[%clk 0:01:03.4]} 31... Re8 {[%clk 0:00:18.6]} 32.
Qg7# {[%clk 0:01:00.2]} 1-0

[Event "*** SCC Grand Prix: Titled Tuesday Blitz"]
[Site "Chess.com"]
[Date "2020.10.13"]
[Round "6"]
[White "CrazyMartian"]
[Black "Castleqweenside7447"]
[Result "0-1"]
[WhiteElo "2295"]
[BlackElo "2442"]
[TimeControl "180+1"]
[EndTime "11:05:53 PDT"]
[Termination "Castleqweenside7447 won by resignation"]

1. d4 {[%clk 0:03:00.9]} 1... c5 {[%clk 0:03:00]} 2. c3 {[%clk 0:03:00.3]} 2...
e6 {[%clk 0:02:59.6]} 3. Nf3 {[%clk 0:03:00.6]} 3... Nc6 {[%clk 0:02:59.8]} 4.
Bf4 {[%clk 0:03:00.8]} 4... Qb6 {[%clk 0:03:00]} 5. Qb3 {[%clk 0:02:43.1]} 5...
d5 {[%clk 0:02:57.5]} 6. e3 {[%clk 0:02:38.3]} 6... c4 {[%clk 0:02:52.7]} 7. Qc2
{[%clk 0:02:37.8]} 7... Nf6 {[%clk 0:02:44.5]} 8. Nbd2 {[%clk 0:02:35.9]} 8...
Nh5 {[%clk 0:02:44.4]} 9. Bg3 {[%clk 0:02:34.4]} 9... g6 {[%clk 0:02:42]} 10. e4
{[%clk 0:02:30.7]} 10... Bh6 {[%clk 0:02:37.2]} 11. Be2 {[%clk 0:02:25]} 11...
Nf4 {[%clk 0:02:33.8]} 12. Bxf4 {[%clk 0:02:24.8]} 12... Bxf4 {[%clk 0:02:33.6]}
13. O-O {[%clk 0:02:24.8]} 13... O-O {[%clk 0:02:33.3]} 14. g3 {[%clk
0:02:22.8]} 14... Bh6 {[%clk 0:02:33.2]} 15. e5 {[%clk 0:02:13.9]} 15... Bd7
{[%clk 0:02:32.9]} 16. h4 {[%clk 0:02:12.7]} 16... f6 {[%clk 0:02:28.9]} 17.
exf6 {[%clk 0:02:12.1]} 17... Rxf6 {[%clk 0:02:29.8]} 18. Ng5 {[%clk 0:02:03.9]}
18... Raf8 {[%clk 0:01:56]} 19. Kg2 {[%clk 0:01:44.3]} 19... e5 {[%clk
0:01:47.5]} 20. dxe5 {[%clk 0:01:43.5]} 20... Nxe5 {[%clk 0:01:48.4]} 21. f4
{[%clk 0:01:42.4]} 21... Bf5 {[%clk 0:01:47.1]} 22. fxe5 {[%clk 0:01:22.7]}
22... Bxc2 {[%clk 0:01:46.1]} 23. exf6 {[%clk 0:01:22.8]} 23... Bxg5 {[%clk
0:01:33.4]} 24. hxg5 {[%clk 0:01:22.1]} 24... Qe3 {[%clk 0:01:33.9]} 25. Rf2
{[%clk 0:00:44.2]} 25... Qxd2 {[%clk 0:01:33.1]} 26. Bf3 {[%clk 0:00:20.3]}
26... Qd3 {[%clk 0:01:20.4]} 27. Re1 {[%clk 0:00:20.2]} 27... Qf5 {[%clk
0:01:15.4]} 28. Be2 {[%clk 0:00:15.2]} 28... Be4+ {[%clk 0:01:11.2]} 29. Kg1
{[%clk 0:00:14.5]} 29... Qxg5 {[%clk 0:01:11.3]} 0-1